bitfinex-derivatives/quotes_BTCF0:USTF0_20250129
["timestamp","ask_amount","ask_price","bid_price","bid_amount"]
[1738173964519,0.195723,102190.0,102180.0,0.48815829]
[1738173964822,0.195723,102190.0,102180.0,0.29241929]
[1738173965015,0.195723,102190.0,102180.0,0.48816129]
[1738173965211,0.195723,102190.0,102180.0,0.62629951]
[1738173965415,0.195707,102200.0,102190.0,0.195723]
[1738173966615,0.195707,102200.0,102190.0,0.196723]
[1738173967724,0.55663585,102210.0,102190.0,0.557523]
[1738173968216,0.195704,102200.0,102190.0,0.557523]
[1738173968922,0.556504,102200.0,102190.0,0.001]
[1738173969325,0.69464222,102200.0,102190.0,0.001]
[1738173969522,0.49893822,102200.0,102180.0,0.00014685]
[1738173969713,0.74896122,102190.0,102180.0,0.00014685]
[1738173969919,0.610823,102190.0,102180.0,0.00014685]
[1738173970125,0.74896122,102190.0,102180.0,0.00014685]
[1738173970425,0.74896122,102190.0,102180.0,1e-08]
[1738173970627,1.27202122,102190.0,102180.0,1e-08]
[1738173970926,0.195799,102150.0,102140.0,0.51675954]
[1738173971434,0.195766,102170.0,102160.0,0.195772]
[1738173971728,0.3608,102180.0,102160.0,0.33391022]
[1738173971919,0.195761,102170.0,102160.0,0.195772]
[1738173972634,0.556561,102170.0,102160.0,0.195772]
[1738173972831,0.195761,102170.0,102160.0,0.195772]
[1738173973022,0.55669285,102180.0,102170.0,0.195761]
[1738173973228,0.19589285,102180.0,102170.0,0.195761]
[1738173973429,0.55669285,102180.0,102170.0,0.195761]
[1738173973725,0.19589285,102180.0,102170.0,0.33389922]
[1738173974125,0.00014685,102180.0,102170.0,0.33389922]
[1738173974431,0.00014685,102180.0,102170.0,0.69469922]
[1738173974931,0.19588885,102180.0,102170.0,0.195761]
[1738173975325,0.19588885,102180.0,102170.0,0.33389922]
[1738173975524,0.19588885,102180.0,102170.0,0.36389922]
[1738173976531,0.00014685,102180.0,102170.0,0.77569922]
[1738173976826,1e-08,102180.0,102170.0,0.77569922]
[1738173977022,1e-08,102180.0,102170.0,1.07569922]
[1738173977428,0.67232111,102220.0,102170.0,0.87993822]
[1738173977731,0.31151811,102220.0,102210.0,0.33382322]
[1738173978030,0.31151811,102220.0,102210.0,0.195685]
[1738173978523,0.11585311,102220.0,102210.0,0.195685]
[1738173979437,0.195685,102210.0,102200.0,0.55664385]
[1738173979734,0.195685,102210.0,102200.0,0.19584385]
[1738173980527,0.556485,102210.0,102200.0,0.00014685]
[1738173980727,0.69462322,102210.0,102200.0,0.00014685]
[1738173980929,0.556485,102210.0,102200.0,0.00014685]
[1738173981333,0.69462322,102210.0,102200.0,0.00014685]
[1738173981831,0.3638,102220.0,102210.0,0.195685]
[1738173982038,0.3638,102220.0,102210.0,0.33382322]
[1738173982232,0.003,102220.0,102210.0,0.195685]
[1738173982429,0.198665,102220.0,102210.0,0.225685]
[1738173982633,0.195665,102220.0,102210.0,0.225685]
[1738173983536,0.196665,102220.0,102210.0,0.225685]
[1738173983735,0.557465,102220.0,102210.0,0.195685]
[1738173983930,0.196665,102220.0,102210.0,0.195685]
[1738173984436,0.001,102220.0,102210.0,0.38382322]
[1738173984940,0.196665,102220.0,102210.0,0.195685]
[1738173985141,0.001,102220.0,102210.0,0.195685]
[1738173985434,0.001,102220.0,102210.0,0.77462322]
[1738173985629,0.001,102220.0,102210.0,0.72462322]
[1738173985825,0.001,102220.0,102210.0,0.76462322]
[1738173986439,0.001,102220.0,102210.0,0.72462322]
[1738173986840,0.001,102220.0,102210.0,0.77462322]
[1738173987838,0.0571,102250.0,102210.0,0.68813822]
[1738173988044,0.32022469,102250.0,102240.0,0.195627]
[1738173988247,0.32022469,102250.0,102240.0,0.33376522]
[1738173988544,0.32022469,102250.0,102240.0,0.69456522]
[1738173988836,0.32022469,102250.0,102240.0,0.77456522]
[1738173989042,0.32522469,102250.0,102240.0,0.91270344]
[1738173989233,0.32522469,102250.0,102240.0,1.02190344]
[1738173989729,0.32022469,102250.0,102240.0,1.02190344]
[1738173989930,0.32322469,102250.0,102240.0,1.02190344]
[1738173990142,0.43667004,102270.0,102260.0,0.195589]
[1738173990342,0.43667004,102270.0,102260.0,0.69452722]
[1738173990731,0.195589,102260.0,102250.0,0.33388907]
[1738173991336,0.99304604,102270.0,102260.0,0.195589]
[1738173991737,0.63224604,102270.0,102260.0,0.195589]
[1738173991943,0.195576,102270.0,102260.0,0.33372722]
[1738173992343,0.72450233,102290.0,102280.0,0.195551]
[1738173992641,0.72450233,102290.0,102260.0,0.66783122]
[1738173992642,0.72450233,102290.0,102270.0,0.49893822]
[1738173992844,0.72450233,102290.0,102280.0,0.195551]
[1738173993143,0.36370233,102290.0,102280.0,0.195551]
[1738173993338,0.255435,102290.0,102280.0,0.33368922]
[1738173993544,0.77275277,102300.0,102290.0,0.195532]
[1738173993747,0.656326,102300.0,102280.0,0.33367622]
[1738173994045,0.195551,102280.0,102270.0,0.00014685]
[1738173994248,0.69448922,102280.0,102270.0,0.00014685]
[1738173994434,0.724251,102280.0,102270.0,0.00014685]
[1738173994640,0.86238922,102280.0,102270.0,0.00014685]
[1738173995043,0.724251,102280.0,102270.0,0.00014685]
[1738173995242,0.86238922,102280.0,102270.0,0.00014685]
[1738173995439,0.86238922,102280.0,102270.0,1e-08]
[1738173995638,0.86238922,102280.0,102250.0,0.00146673]
[1738173995639,0.195589,102260.0,102250.0,0.00146673]
[1738173995840,0.556389,102260.0,102250.0,0.00146673]
[1738173996046,0.556389,102260.0,102250.0,0.33521295]
[1738173996543,0.195589,102260.0,102250.0,0.33521295]
[1738173996747,0.196589,102260.0,102250.0,0.33521295]
[1738173996951,0.196589,102260.0,102250.0,0.33374622]
[1738173997249,0.001,102260.0,102240.0,0.73158073]
[1738173997546,0.557391,102260.0,102250.0,0.195608]
[1738173998140,0.195608,102250.0,102240.0,0.42826451]
[1738173998338,0.195608,102250.0,102240.0,0.57826451]
[1738173998749,0.557395,102260.0,102250.0,0.195608]
[1738173999146,0.55652185,102270.0,102260.0,0.195589]
[1738173999747,0.55652185,102270.0,102260.0,0.33372722]
[1738174000151,0.55652185,102270.0,102260.0,0.195589]
[1738174000347,0.00014685,102270.0,102260.0,0.33372722]
[1738174000546,0.00014685,102270.0,102260.0,0.80452722]
[1738174002247,0.00014685,102270.0,102260.0,0.556389]
[1738174002551,0.00014685,102270.0,102260.0,0.69452722]
[1738174002745,0.00214685,102270.0,102260.0,0.69452722]
[1738174003551,0.00214685,102270.0,102260.0,0.73452722]
[1738174003744,0.00214685,102270.0,102260.0,0.76452722]
[1738174004841,0.00214685,102270.0,102260.0,0.72452722]
[1738174005044,0.00214685,102270.0,102260.0,0.69452722]
[1738174005445,0.00214685,102270.0,102260.0,0.74452722]
[1738174005949,8.5e-07,102270.0,102260.0,1.04452722]
[1738174006251,0.10146715,102300.0,102290.0,0.195532]
[1738174006441,0.10146715,102300.0,102290.0,0.33367022]
[1738174006647,0.10146715,102300.0,102290.0,0.69447022]
[1738174006856,0.29697915,102300.0,102290.0,0.195532]
[1738174008351,0.29697915,102300.0,102290.0,0.556332]
[1738174008551,0.29697915,102300.0,102290.0,0.69447022]
[1738174008552,0.10146715,102300.0,102290.0,0.69447022]
[1738174008848,0.104,102300.0,102290.0,0.73447022]
[1738174009051,0.11625269,102320.0,102310.0,0.195493]
[1738174009243,0.11625269,102320.0,102310.0,0.73443122]
[1738174009955,0.11625269,102320.0,102310.0,0.69443122]
[1738174010158,0.12225269,102320.0,102310.0,0.69543122]
[1738174010344,0.12225269,102320.0,102310.0,0.33463122]
[1738174010955,0.201474,102320.0,102310.0,0.33463122]
[1738174011255,0.562274,102320.0,102310.0,0.196493]
[1738174011645,0.556274,102320.0,102310.0,0.195493]
[1738174011957,0.195493,102310.0,102300.0,0.00014685]
[1738174012159,0.615093,102310.0,102300.0,0.00014685]
[1738174012351,0.369593,102310.0,102300.0,0.19565885]
[1738174012543,0.730393,102310.0,102300.0,0.19565885]
[1738174012945,0.730393,102310.0,102300.0,0.00014685]
[1738174013149,0.732393,102310.0,102300.0,0.00014685]
[1738174014447,0.732393,102310.0,102300.0,0.19565885]
[1738174014957,0.732393,102310.0,102300.0,0.00014685]
[1738174015457,0.732393,102310.0,102300.0,0.33379707]
[1738174015657,0.732393,102310.0,102300.0,0.00014685]
[1738174016952,0.87053122,102310.0,102300.0,0.00014685]
[1738174017152,0.195532,102290.0,102280.0,0.556346]
[1738174017351,0.19552,102300.0,102290.0,0.195521]
[1738174017758,0.19552,102300.0,102290.0,0.33365922]
[1738174018055,0.55632,102300.0,102290.0,0.195521]
[1738174019260,0.55732,102300.0,102290.0,0.195521]
[1738174020056,0.195532,102290.0,102280.0,0.19568985]
[1738174020262,0.556332,102290.0,102280.0,0.19568985]
[1738174020652,0.556332,102290.0,102280.0,0.33382807]
[1738174021858,0.53504685,102310.0,102280.0,0.49908507]
[1738174022048,0.00014685,102310.0,102300.0,0.69445022]
[1738174022251,0.00014685,102310.0,102300.0,0.90445022]
[1738174022454,0.00014685,102310.0,102300.0,0.96145022]
[1738174022658,0.00014685,102310.0,102300.0,0.99145022]
[1738174023361,0.26213136,102310.0,102300.0,0.99145022]
[1738174023960,0.26413136,102310.0,102300.0,0.99145022]
[1738174025165,0.17440666,102320.0,102310.0,0.195493]
[1738174025459,0.02887766,102320.0,102310.0,0.90443122]
[1738174025756,0.19316536,102350.0,102340.0,0.195436]
[1738174025961,0.38858236,102350.0,102340.0,0.33357422]
[1738174026151,0.19316536,102350.0,102340.0,0.33357422]
[1738174026560,0.19316536,102350.0,102340.0,0.69437422]
[1738174026853,0.19316536,102350.0,102340.0,0.74437422]
[1738174027050,0.19316536,102350.0,102340.0,0.80717422]
[1738174027450,1.04018233,102370.0,102340.0,0.80717422]
[1738174027451,0.315682,102370.0,102340.0,0.61173822]
[1738174027651,0.252565,102380.0,102370.0,0.195379]
[1738174028054,0.195379,102370.0,102360.0,0.33352522]
[1738174028262,0.195379,102370.0,102360.0,0.19553385]
[1738174028562,0.556179,102370.0,102360.0,0.00014685]
[1738174028760,0.69431722,102370.0,102360.0,0.00014685]
[1738174028961,0.195452,102340.0,102330.0,0.195452]
[1738174029461,0.195455,102330.0,102320.0,0.195467]
[1738174029761,0.195455,102330.0,102320.0,0.33360522]
[1738174030565,0.19558885,102340.0,102330.0,0.195455]
[1738174030761,0.00014685,102340.0,102330.0,0.69439322]
[1738174030971,0.00014685,102340.0,102330.0,0.74439322]
[1738174031168,0.252383,102370.0,102360.0,0.195398]
[1738174031359,0.057,102370.0,102360.0,0.69433622]
[1738174031559,0.31777,102380.0,102370.0,0.195379]
[1738174031762,0.67857,102380.0,102370.0,0.195379]
[1738174032170,0.195379,102370.0,102360.0,0.36352622]
[1738174032355,0.195379,102370.0,102360.0,0.36367307]
[1738174033263,0.195379,102370.0,102360.0,0.33367307]
[1738174033464,0.195379,102370.0,102360.0,0.69447307]
[1738174033661,0.320765,102380.0,102370.0,0.195379]
[1738174033862,0.320765,102380.0,102370.0,0.33351722]
[1738174034059,0.198365,102380.0,102370.0,0.33351722]
[1738174034262,0.198365,102380.0,102370.0,0.195379]
[1738174034466,0.195365,102380.0,102370.0,0.195379]
[1738174034663,0.195365,102380.0,102370.0,0.33351722]
[1738174036567,0.2155,102400.0,102370.0,0.59893822]
[1738174036773,0.2155,102400.0,102390.0,0.69427922]
[1738174037067,0.1,102400.0,102390.0,0.72427922]
[1738174037273,0.295322,102400.0,102390.0,0.225341]
[1738174037571,0.300322,102400.0,102390.0,0.195341]
[1738174038071,0.300322,102400.0,102380.0,0.19549885]
[1738174038072,0.195341,102390.0,102380.0,0.19549885]
[1738174038274,0.253541,102390.0,102380.0,0.19549885]
[1738174038462,0.675241,102390.0,102380.0,0.19549885]
[1738174038663,0.81337922,102390.0,102380.0,0.00014685]
[1738174039069,0.675241,102390.0,102380.0,0.00014685]
[1738174039863,0.81337922,102390.0,102380.0,0.00014685]
[1738174040672,0.61803822,102390.0,102360.0,0.36962195]
[1738174040865,0.556179,102370.0,102360.0,0.17422595]
[1738174041470,0.556179,102370.0,102360.0,0.50776217]
[1738174041671,0.195379,102370.0,102360.0,0.50776217]
[1738174042061,0.00014685,102380.0,102360.0,0.72316417]
[1738174042268,0.19551085,102380.0,102370.0,0.33351722]
[1738174042871,0.55631085,102380.0,102370.0,0.33351722]
[1738174043768,0.00014685,102380.0,102370.0,0.69631722]
[1738174045271,0.00014685,102380.0,102370.0,0.69600561]
[1738174046080,0.19550685,102380.0,102370.0,0.55786739]
[1738174046976,0.19550685,102380.0,102370.0,0.69600561]
[1738174047178,0.00014685,102380.0,102370.0,0.74600561]
[1738174047378,0.00014685,102380.0,102370.0,0.69600561]
[1738174047880,0.00014685,102380.0,102370.0,0.75600561]
[1738174048074,0.00014685,102380.0,102370.0,0.69600561]
[1738174048385,0.19550685,102380.0,102370.0,0.55786739]
[1738174048682,0.55630685,102380.0,102370.0,0.002]
[1738174049071,0.55630685,102380.0,102370.0,0.197379]
[1738174049283,0.19550685,102380.0,102370.0,0.33551722]
[1738174049668,0.19550685,102380.0,102370.0,0.69631722]
[1738174049983,0.00014685,102380.0,102370.0,0.69631722]
[1738174050478,0.00014685,102380.0,102370.0,0.80631722]
[1738174052383,0.295327,102400.0,102390.0,0.195341]
[1738174052580,0.195341,102390.0,102380.0,0.195352]
[1738174052782,0.19536,102380.0,102370.0,0.55817]
[1738174052980,0.61946,102380.0,102370.0,0.002]
[1738174053177,0.88009822,102380.0,102370.0,0.002]
[1738174053577,0.195379,102370.0,102360.0,0.19554085]
[1738174053780,0.556179,102370.0,102360.0,0.19554085]
[1738174054385,0.556179,102370.0,102360.0,0.00014685]
[1738174054776,0.195379,102370.0,102360.0,0.19554485]
[1738174054977,0.556179,102370.0,102360.0,0.19554485]
[1738174055379,0.195379,102370.0,102360.0,0.19554485]
[1738174055581,0.1858,102380.0,102370.0,0.195379]
[1738174055886,0.556143,102390.0,102380.0,0.19536]
[1738174056073,0.556143,102390.0,102380.0,0.33349822]
[1738174056074,0.195343,102390.0,102380.0,0.33349822]
[1738174056274,0.195343,102390.0,102380.0,0.36349822]
[1738174056589,0.34111678,102390.0,102380.0,0.36349822]
[1738174056791,0.34111678,102390.0,102380.0,0.19536]
[1738174057087,0.70191678,102390.0,102380.0,0.19536]
[1738174057388,0.70191678,102390.0,102380.0,0.36349822]
[1738174057590,0.34111678,102390.0,102380.0,0.36349822]
[1738174057781,0.14577378,102390.0,102380.0,0.36349822]
[1738174057975,0.14577378,102390.0,102380.0,0.41349822]
[1738174058181,0.70191478,102390.0,102380.0,0.22536]
[1738174058387,0.34111478,102390.0,102380.0,0.22536]
[1738174058588,0.34111478,102390.0,102380.0,0.22636]
[1738174058788,0.70191478,102390.0,102380.0,0.19636]
[1738174058988,0.34111478,102390.0,102380.0,0.19636]
[1738174059688,0.195341,102390.0,102380.0,0.19636]
[1738174062989,0.69427922,102390.0,102380.0,0.001]
[1738174064091,0.556141,102390.0,102380.0,0.001]
[1738174064484,0.556141,102390.0,102380.0,0.19636]
[1738174064991,0.195341,102390.0,102380.0,0.22636]
[1738174065186,0.556141,102390.0,102380.0,0.22636]
[1738174066090,0.69427922,102390.0,102380.0,0.22636]
[1738174066491,0.556141,102390.0,102380.0,0.22636]
[1738174067212,0.556141,102390.0,102380.0,0.19636]
[1738174067497,0.195341,102390.0,102380.0,0.19636]
[1738174067684,0.556141,102390.0,102380.0,0.22636]
[1738174067990,0.97046728,102400.0,102380.0,0.4318]
[1738174068294,0.61522158,102400.0,102390.0,0.195341]
[1738174068794,0.41989358,102400.0,102390.0,0.315341]
[1738174068995,0.41989358,102400.0,102390.0,0.45347922]
[1738174069195,0.41989358,102400.0,102390.0,0.57437922]
[1738174069383,0.41989358,102400.0,102390.0,0.99557922]
[1738174070390,0.00146532,102420.0,102410.0,0.195302]
[1738174070591,0.17684155,102420.0,102410.0,0.195302]
[1738174070794,0.17684155,102420.0,102410.0,0.556102]
[1738174071402,0.17684155,102420.0,102410.0,0.195302]
[1738174071802,0.37412455,102420.0,102410.0,0.195302]
[1738174075809,0.19874832,102420.0,102410.0,0.195302]
[1738174078007,0.19874832,102420.0,102410.0,0.33344022]
[1738174078209,0.002,102420.0,102410.0,0.91424022]
[1738174078401,0.556033,102450.0,102440.0,0.195239]
[1738174080100,0.559033,102450.0,102440.0,0.195239]
[1738174081207,0.198233,102450.0,102440.0,0.195239]
[1738174082310,0.559033,102450.0,102440.0,0.195239]
[1738174082501,0.50193822,102450.0,102430.0,0.36094685]
[1738174082707,0.377745,102440.0,102430.0,0.55619185]
[1738174083006,0.0613,102440.0,102430.0,0.69433007]
[1738174083524,0.256545,102440.0,102430.0,0.69433007]
[1738174083713,0.0613,102440.0,102430.0,0.69433007]
[1738174083913,0.0613,102440.0,102430.0,0.55619185]
[1738174084113,0.256545,102440.0,102430.0,0.55619185]
[1738174084419,0.75548322,102440.0,102430.0,0.00014685]
[1738174084618,0.617345,102440.0,102430.0,0.00014685]
[1738174085807,0.75548322,102440.0,102430.0,0.00014685]
[1738174086209,0.619345,102440.0,102430.0,0.00014685]
[1738174086809,0.619345,102440.0,102430.0,0.19541085]
[1738174087415,0.619345,102440.0,102430.0,0.00014685]
[1738174089520,0.62891911,102440.0,102430.0,0.00014685]
[1738174091722,0.26811911,102440.0,102430.0,0.19541085]
[1738174092612,0.62891911,102440.0,102430.0,0.19541085]
[1738174093414,0.26811911,102440.0,102430.0,0.19541085]
[1738174093620,0.62891911,102440.0,102430.0,0.19541085]
[1738174094316,0.26811911,102440.0,102430.0,0.28693585]
[1738174094525,0.26811911,102440.0,102430.0,0.19541085]
[1738174094820,0.26811911,102440.0,102430.0,0.28693585]
[1738174095021,0.62891911,102440.0,102430.0,0.28693585]
[1738174095423,0.62891911,102440.0,102430.0,0.19541085]
[1738174097217,0.62891911,102440.0,102430.0,0.28693585]
[1738174097418,0.26811911,102440.0,102430.0,0.28693585]
[1738174098223,0.62891911,102440.0,102430.0,0.28693585]
[1738174099729,0.26811911,102440.0,102430.0,0.28693585]
[1738174100023,0.01157411,102440.0,102430.0,0.33693585]
[1738174100232,0.002,102440.0,102430.0,0.85683585]
[1738174101932,0.197245,102440.0,102430.0,0.55621085]
[1738174102128,0.259745,102440.0,102430.0,0.55621085]
[1738174102427,0.259745,102440.0,102430.0,0.64773585]
[1738174102628,0.002,102440.0,102430.0,0.68773585]
[1738174103130,0.197245,102440.0,102430.0,1.06886293]
[1738174103319,0.558045,102440.0,102430.0,1.06886293]
[1738174103515,0.197245,102440.0,102430.0,0.97733793]
[1738174103927,0.197245,102440.0,102430.0,1.06886293]
[1738174104431,0.002,102440.0,102430.0,1.47966293]
[1738174104830,0.002,102440.0,102430.0,1.42966293]
[1738174105034,0.197245,102440.0,102430.0,1.53966293]
[1738174105529,0.002,102440.0,102430.0,1.53966293]
[1738174106136,0.57925363,102460.0,102450.0,0.195226]
[1738174106431,0.195226,102450.0,102440.0,0.556036]
[1738174107030,0.195245,102440.0,102430.0,0.40764112]
[1738174107229,0.556045,102440.0,102430.0,0.40764112]
[1738174107426,0.64757,102440.0,102430.0,0.40764112]
[1738174109134,0.195283,102420.0,102410.0,0.32185349]
[1738174109333,0.195302,102410.0,102400.0,0.29128912]
[1738174109527,0.800287,102410.0,102400.0,0.29128912]
[1738174110435,0.195321,102400.0,102390.0,1.19818339]
[1738174110634,0.739171,102400.0,102390.0,1.19818339]
[1738174110941,1.039171,102400.0,102390.0,1.19818339]
[1738174111331,0.947646,102400.0,102390.0,1.19818339]
[1738174111940,1.039171,102400.0,102390.0,1.19818339]
[1738174112142,1.039171,102400.0,102390.0,0.2832103]
[1738174112539,0.947646,102400.0,102390.0,0.2832103]
[1738174113047,0.647646,102400.0,102390.0,0.2832103]
[1738174113237,0.651646,102400.0,102390.0,0.2832103]
[1738174113435,0.71880442,102400.0,102390.0,0.2832103]
[1738174113744,0.77830442,102400.0,102390.0,0.2832103]
[1738174114042,0.195341,102390.0,102380.0,0.00014685]
[1738174114242,0.647666,102390.0,102380.0,0.00014685]
[1738174115039,0.735826,102390.0,102380.0,0.00014685]
[1738174116544,0.648666,102390.0,102380.0,0.19550685]
[1738174116843,1.00190234,102390.0,102380.0,0.00014685]
[1738174117035,0.195398,102360.0,102350.0,0.32310416]
[1738174117236,0.647723,102360.0,102350.0,0.32310416]
[1738174117436,0.195382,102370.0,102360.0,0.195398]
[1738174117637,0.556182,102370.0,102360.0,0.195398]
[1738174118045,0.556182,102370.0,102350.0,0.21921216]
[1738174118249,0.556182,102370.0,102350.0,0.41476901]
[1738174118748,0.647707,102370.0,102350.0,0.41476901]
[1738174119147,0.556182,102370.0,102350.0,0.41476901]
[1738174119551,0.556182,102370.0,102350.0,0.41776901]
[1738174119942,0.195398,102360.0,102350.0,0.41776901]
[1738174120246,0.195398,102360.0,102350.0,0.41476901]
[1738174120447,0.195398,102360.0,102350.0,0.41676901]
[1738174121744,0.195398,102360.0,102350.0,0.32524401]
[1738174121938,0.195398,102360.0,102350.0,0.12783401]
[1738174122136,0.647723,102360.0,102350.0,0.13083401]
[1738174122338,0.556198,102360.0,102350.0,0.32625101]
[1738174122545,0.195398,102360.0,102350.0,0.32625101]
[1738174122748,0.195398,102360.0,102350.0,0.41777601]
[1738174122946,0.195384,102370.0,102360.0,0.195398]
[1738174123247,0.195384,102370.0,102360.0,0.286923]
[1738174123545,0.195384,102370.0,102360.0,0.436923]
[1738174123752,0.195384,102370.0,102360.0,0.316923]
[1738174123935,0.195384,102370.0,102360.0,0.225398]
[1738174124139,0.195384,102370.0,102360.0,0.316923]
[1738174124849,0.195384,102370.0,102360.0,0.225398]
[1738174125144,0.195398,102360.0,102350.0,0.68404901]
[1738174125348,0.195398,102360.0,102350.0,0.77557401]
[1738174125645,0.195398,102360.0,102350.0,0.68404901]
[1738174125848,0.556198,102360.0,102350.0,0.32325101]
[1738174126045,0.556198,102360.0,102350.0,0.12783401]
[1738174126245,0.556198,102360.0,102350.0,0.41477601]
[1738174126441,0.195398,102360.0,102350.0,0.41477601]
[1738174126853,0.195398,102360.0,102350.0,0.41777601]
[1738174127150,0.195387,102370.0,102360.0,0.195385]
[1738174127349,0.00997086,102380.0,102360.0,0.502325]
[1738174127656,0.00997086,102380.0,102370.0,0.286904]
[1738174127657,0.19551385,102380.0,102370.0,0.286904]
[1738174127948,0.64295315,102390.0,102370.0,0.81515]
[1738174127949,0.11631615,102390.0,102370.0,0.81515]
[1738174128146,0.14539519,102400.0,102380.0,0.60065]
[1738174128340,0.14539519,102400.0,102390.0,0.739191]
[1738174128541,0.14539519,102400.0,102390.0,0.789191]
[1738174128936,0.31986942,102400.0,102390.0,0.789191]
[1738174129547,0.04116942,102400.0,102390.0,0.789191]
[1738174129755,0.20358905,102410.0,102400.0,0.195322]
[1738174129956,0.20358905,102410.0,102400.0,0.757647]
[1738174130443,0.00014685,102410.0,102400.0,0.757647]
[1738174130657,0.00014685,102410.0,102400.0,0.9406971]
[1738174131238,0.677652,102440.0,102430.0,0.195264]
[1738174132449,0.679652,102440.0,102430.0,0.195264]
[1738174132952,0.195264,102430.0,102420.0,0.55621885]
[1738174133852,0.195264,102430.0,102420.0,0.6935064]
[1738174134653,0.557064,102430.0,102420.0,0.3327064]
[1738174134856,0.557064,102430.0,102420.0,0.00014685]
[1738174135155,0.557064,102430.0,102420.0,0.195283]
[1738174135356,0.557064,102430.0,102420.0,0.33257055]
[1738174135752,0.557064,102430.0,102420.0,0.195283]
[1738174136053,0.557064,102430.0,102420.0,0.33257055]
[1738174136555,0.557064,102430.0,102420.0,0.33237658]
[1738174136955,0.3618,102430.0,102420.0,0.33237658]
[1738174137254,0.557064,102430.0,102420.0,0.33237658]
[1738174137759,0.001,102430.0,102420.0,0.33237658]
[1738174137946,0.3618,102430.0,102420.0,0.33237658]
[1738174138953,0.557064,102430.0,102420.0,0.19508903]
[1738174139651,0.557064,102430.0,102420.0,0.33237658]
[1738174140660,0.3618,102430.0,102420.0,0.33237658]
[1738174141148,0.001,102430.0,102420.0,0.74317658]
[1738174142452,0.07083228,102450.0,102420.0,0.54808755]
[1738174142453,0.06104685,102450.0,102420.0,0.54808755]
[1738174142659,0.06104685,102450.0,102440.0,0.69333255]
[1738174142857,0.06104685,102450.0,102440.0,0.81333255]
[1738174143163,0.25627285,102450.0,102440.0,0.33253255]
[1738174143356,0.06104685,102450.0,102440.0,0.69333255]
[1738174143549,0.20453702,102470.0,102440.0,0.6753751]
[1738174143754,0.20453702,102470.0,102460.0,0.69329455]
[1738174144350,0.20453702,102470.0,102460.0,0.74329455]
[1738174144548,0.20307224,102470.0,102460.0,0.69329455]
[1738174145058,0.55611985,102480.0,102470.0,0.195188]
[1738174147564,0.56011985,102480.0,102470.0,0.195188]
[1738174148557,0.195197,102470.0,102460.0,0.195201]
[1738174149162,0.3608,102470.0,102460.0,0.195201]
[1738174149466,0.3608,102470.0,102460.0,0.33248855]
[1738174150058,0.555988,102470.0,102460.0,0.33248855]
[1738174150359,0.558988,102470.0,102460.0,0.195201]
[1738174150560,0.558988,102470.0,102460.0,0.28666227]
[1738174151254,0.198188,102470.0,102460.0,0.28666227]
[1738174152165,0.195207,102460.0,102450.0,0.28681912]
[1738174152357,0.735807,102460.0,102450.0,0.19535785]
[1738174152557,0.735807,102460.0,102450.0,0.28681912]
[1738174152753,0.375007,102460.0,102450.0,0.28681912]
[1738174153164,2.5686,102460.0,102450.0,0.28681912]
[1738174153364,2.5706,102460.0,102450.0,0.28681912]
[1738174153758,3.21806827,102460.0,102450.0,0.00014685]
[1738174153962,3.126607,102460.0,102450.0,0.28683412]
[1738174154166,3.126607,102460.0,102450.0,0.73909539]
[1738174154167,2.5706,102460.0,102450.0,0.73909539]
[1738174154356,2.3908,102460.0,102450.0,0.78909539]
[1738174157563,2.3908,102460.0,102450.0,0.69763412]
[1738174158677,2.3908,102460.0,102450.0,0.78909539]
[1738174159769,2.3908,102460.0,102450.0,0.69763412]
[1738174159971,2.3908,102460.0,102450.0,0.78909539]
[1738174160469,2.3908,102460.0,102450.0,0.69763412]
[1738174160767,2.3908,102460.0,102450.0,0.78909539]
[1738174160966,2.586007,102460.0,102450.0,0.28683412]
[1738174161362,2.3908,102460.0,102450.0,0.28683412]
[1738174161560,2.3908,102460.0,102450.0,0.33683412]
[1738174161759,2.3908,102460.0,102450.0,0.28683412]
[1738174161963,2.3908,102460.0,102450.0,0.31683412]
[1738174162163,2.586007,102460.0,102450.0,0.31683412]
[1738174162363,2.73156405,102460.0,102450.0,0.31683412]
[1738174162570,2.53635705,102460.0,102450.0,0.31683412]
[1738174162867,2.73156405,102460.0,102450.0,0.28683412]
[1738174163166,3.09236405,102460.0,102450.0,0.28683412]
[1738174164059,2.73156405,102460.0,102450.0,0.28683412]
[1738174164557,3.09236405,102460.0,102450.0,0.28683412]
[1738174164760,2.73156405,102460.0,102450.0,0.28683412]
[1738174165171,3.09236405,102460.0,102450.0,0.19537285]
[1738174165368,2.53635705,102460.0,102450.0,0.28683412]
[1738174165557,2.3908,102460.0,102450.0,0.11108979]
[1738174165761,2.586014,102460.0,102450.0,0.195226]
[1738174165969,2.586014,102460.0,102450.0,0.28668727]
[1738174166267,2.946814,102460.0,102450.0,0.28668727]
[1738174166772,2.946814,102460.0,102450.0,0.195226]
[1738174167376,2.946814,102460.0,102450.0,0.31668727]
[1738174167765,2.3908,102460.0,102450.0,0.67748727]
[1738174167961,2.3908,102460.0,102450.0,0.87894854]
[1738174168178,2.3908,102460.0,102450.0,0.42668727]
[1738174168479,2.3908,102460.0,102450.0,0.56226127]
[1738174168664,2.3908,102460.0,102450.0,0.75748727]
[1738174169262,2.3908,102460.0,102450.0,0.84894854]
[1738174169474,2.56587299,102460.0,102450.0,0.86894854]
[1738174169662,2.56587299,102460.0,102450.0,0.98634854]
[1738174172466,2.53677653,102460.0,102450.0,0.98634854]
[1738174174769,2.53677653,102460.0,102450.0,0.99605024]
[1738174175476,2.53677653,102460.0,102450.0,0.87865024]
[1738174176275,2.53677653,102460.0,102450.0,0.78718897]
[1738174176474,2.53677653,102460.0,102450.0,0.87865024]
[1738174178069,2.71184952,102460.0,102450.0,0.78718897]
[1738174178882,2.71184952,102460.0,102450.0,0.87865024]
[1738174180464,2.71184952,102460.0,102450.0,0.85865024]
[1738174180879,2.71184952,102460.0,102450.0,0.87865024]
[1738174181279,2.53677653,102460.0,102450.0,0.78718897]
[1738174181580,2.73198353,102460.0,102450.0,0.195226]
[1738174181776,0.195226,102450.0,102440.0,0.00014685]
[1738174181972,0.373026,102450.0,102440.0,0.19538685]
[1738174182570,0.373026,102450.0,102440.0,0.28684812]
[1738174182980,0.374026,102450.0,102440.0,0.28684812]
[1738174183275,0.1788,102450.0,102440.0,0.33684812]
[1738174183481,0.1788,102450.0,102440.0,0.69764812]
[1738174184280,0.35387299,102450.0,102440.0,0.69764812]
[1738174184584,0.35387299,102450.0,102440.0,0.78910939]